[Event "54th Rubinstein Memorial-A 2018"]
[Site "Polanica-Zdroj"]
[Date "2018.08.26"]
[Round "9"]
[White "Klepek, Witold"]
[Black "Djuric, Stefan"]
[Result "0-1"]
[ECO "C44"]
[WhiteElo "2139"]
[BlackElo "2352"]
[Annotator "NA"]
[PlyCount "50"]
[EventDate "2018.08.18"]
[EventType "swiss"]
[EventCountry "POL"]
[SourceTitle "playchess.com"]
[Source "ChessBase"]
[SourceQuality "1"]
[TimeControl "40/5400+30:1800+30"]

1. e4 {[%emt 0:00:00]} e5 {[%emt 0:09:52]} 2. Nf3 {[%emt 0:00:00]} Nc6 {[%emt 0:00:11]} 3. d4 {[%emt 0:00:00]} exd4 {[%emt 0:00:14]} 4. Nxd4 {[%emt 0:00:00]} Bb4+ {[%emt 0:00:16]} 5. c3 {[%emt 0:00:33]} Bc5 {[%emt 0:00:17] C45: Schottische Partie} (5... Be7 6. Nxc6 bxc6 7. Bd3 d6 8. O-O Nf6 9. Re1 O-O 10. Nd2 Re8 11. Nf3 Nd7 12. Bf4 Nc5 13. Bc2 Bg4 14. h3 Bh5 15. Be3 Nd7 16. Ba4 c5 {0-1 (29) So,W (2810)-Carlsen,M (2822) Saint Louis 2017 CBM 180 [Mekhitarian,K]}) 6. g3 {[%emt 0:07:25]} Nf6 {[%emt 0:05:53]} 7. Bg2 {[%emt 0:03:18]} O-O {[%emt 0:00:19]} 8. O-O {[%emt 0:00:22]} Re8 {[%emt 0:00:36]} 9. Re1 {[%emt 0:01:28]} d5 $146 {[%emt 0:12:29]} ({Vorgänger:} 9... d6 10. h3 Ne5 11. Kh2 c6 12. f4 Ng6 13. Qf3 {½-½ (25) Krumm,J (2069)-Kopp,B (2183) Germany 2016}) 10. Nxc6 {[%emt 0:08:42]} bxc6 {[%emt 0:00:20]} 11. Bg5 {[%emt 0:00:33]} h6 {[%emt 0:06:11]} 12. Bxf6 {[%emt 0:02:13]} Qxf6 {[%emt 0:00:11]} 13. Qf3 {[%emt 0:00:25]} Qxf3 {[%emt 0:15:22]} 14. Bxf3 {[%emt 0:00:05]} f5 {[%emt 0:00:22]} 15. e5 {[%emt 0:03:12] [#]} Rb8 $1 {[%emt 0:00:57]} 16. Bh5 {[%emt 0:03:12]} Rxb2 {[%emt 0:00:37]} 17. Bxe8 {[%emt 0:05:00]} Bxf2+ {[%emt 0:00:13]} 18. Kh1 {[%emt 0:00:06]} Bxe1 {[%emt 0:00:44]} 19. Bxc6 {[%emt 0:00:07]} Be6 {[%emt 0:00:45]} 20. Na3 {[%emt 0:00:05]} Bxc3 {[%emt 0:01:11]} 21. Rc1 {[%emt 0:00:31]} Bd2 {[%emt 0:02:53]} 22. Rd1 {[%emt 0:04:04]} a6 {[%emt 0:04:05]} 23. Nb1 {[%emt 0:01:02]} Bb4 {[%emt 0:02:35]} 24. a3 $19 {[%emt 0:01:22]} Ba5 {[%emt 0:00:22]} 25. Rc1 {[%emt 0:00:26]} d4 {[%emt 0:02:14]} 0-1

[Event "54th Rubinstein Memorial-A 2018"]
[Site "Polanica-Zdroj"]
[Date "2018.08.26"]
[Round "9"]
[White "Wisniewski, Michal"]
[Black "Reza, Wojciech"]
[Result "1-0"]
[ECO "A00"]
[WhiteElo "2122"]
[BlackElo "2303"]
[Annotator "NA"]
[PlyCount "77"]
[EventDate "2018.08.18"]
[EventType "swiss"]
[EventCountry "POL"]
[SourceTitle "playchess.com"]
[Source "ChessBase"]
[SourceQuality "1"]
[TimeControl "40/5400+30:1800+30"]

1. c3 {[%emt 0:07:10]} Nf6 {[%emt 0:01:06]} 2. c4 {[%emt 0:00:08] A00: Irregular Openings} (2. d4 g6 3. Bg5 Bg7 4. Nd2 O-O 5. e3 c5 6. dxc5 a5 7. Bxf6 Bxf6 8. Ne4 Bg7 9. Qd5 a4 10. h4 a3 11. b4 Nc6 12. Rd1 {1-0 (32) Bartel,M (2609)-Ladva,O (2522) Katowice 2017}) 2... e5 {[%emt 0:00:45]} 3. d3 {[%emt 0:00:03]} Nc6 {[%emt 0:03:07]} 4. a3 {[%emt 0:01:20]} d5 {[%emt 0:00:24]} 5. cxd5 {[%emt 0:00:04]} Nxd5 {[%emt 0:00:05] LiveBook: 700 Games} 6. Nf3 {[%emt 0:00:03]} Bg4 {[%emt 0:09:21]} 7. Nbd2 $146 {[%emt 0:03:18]} ({Predecessor:} 7. e3 Qf6 8. h3 Bh5 9. Be2 O-O-O {½-½ (23) Ustinov,A (2193)-Denishev,M (2131) Dmitrov 2011}) 7... Bc5 {[%emt 0:02:38]} 8. h3 {[%emt 0:00:04]} Be6 {[%emt 0:02:08]} 9. Qc2 {[%emt 0:11:42]} Qe7 {[%emt 0:10:49]} 10. b4 {[%emt 0:02:10]} Bb6 {[%emt 0:09:08]} 11. Bb2 {[%emt 0:03:54]} Bd7 {[%emt 0:28:09]} ({Black should try} 11... Nd4 $11 12. Nxd4 exd4) 12. Nc4 {[%emt 0:14:29]} O-O {[%emt 0:05:36]} 13. e4 {[%emt 0:13:33]} Nf4 {[%emt 0:06:01]} 14. Nfxe5 {[%emt 0:12:51]} Nd4 {[%emt 0:01:44]} 15. Qc3 {[%emt 0:04:18]} Ba4 {[%emt 0:03:25]} 16. Rc1 {[%emt 0:13:58]} Nfe6 17. Nxb6 {[%emt 0:05:08]} cxb6 {[%emt 0:00:21]} 18. Nf3 {[%emt 0:00:27]} Rfd8 {[%emt 0:06:06]} 19. Be2 {[%emt 0:01:35]} Nxe2 {[%emt 0:01:33]} 20. Kxe2 {[%emt 0:00:23]} Nf4+ {[%emt 0:00:11]} 21. Kf1 {[%emt 0:01:11] [#]} f6 {[%emt 0:01:14]} ({Black should play} 21... Qf8 $1 $17 22. Nd4 Rac8) 22. Nd4 {[%emt 0:00:09]} Qd7 {[%emt 0:01:16]} 23. g3 {[%emt 0:00:44]} Nxh3 {[%emt 0:05:02]} 24. Qc4+ {[%emt 0:00:16]} Kh8 {[%emt 0:00:06]} 25. b5 {[%emt 0:00:02]} Rac8 {[%emt 0:01:30]} 26. Qxa4 {[%emt 0:00:02]} Rxc1+ 27. Bxc1 {[%emt 0:00:02]} Ng5 {[%emt 0:00:56]} 28. Be3 {[%emt 0:02:10]} Qg4 {[%emt 0:00:11]} 29. Bxg5 {[%emt 0:00:18]} fxg5 {[%emt 0:00:12]} 30. Kg2 {[%emt 0:00:13]} Qd7 {[%emt 0:00:05]} 31. Nf3 {[%emt 0:00:31]} Qxd3 {[%emt 0:00:44]} 32. Nxg5 {[%emt 0:00:27]} Kg8 {[%emt 0:00:28] [#]} 33. Rc1 $18 {[%emt 0:00:27]} (33. Rd1 $142 $3 {[%mdl 512]} Qxd1 34. Qc4+ Qd5 35. exd5 h6 36. d6+ Kh8 37. Nf7+ Kh7 38. Nxd8) 33... h6 {[%emt 0:00:51]} 34. Nf3 {[%emt 0:00:04]} Qd7 {[%emt 0:00:08]} 35. Qc4+ {[%emt 0:00:11]} Kh7 {[%emt 0:00:10]} 36. e5 {[%emt 0:00:08]} Re8 {[%emt 0:00:07]} 37. Re1 {[%emt 0:00:32]} Re6 {[%emt 0:00:22]} 38. Re3 {[%emt 0:00:05]} Qe7 {[%emt 0:00:20]} 39. Qe4+ {[%emt 0:00:04]} 1-0

[Event "54th Rubinstein Memorial-A 2018"]
[Site "Polanica-Zdroj"]
[Date "2018.08.26"]
[Round "9"]
[White "Goslawski, Michal"]
[Black "Kucza, Karol"]
[Result "1/2-1/2"]
[ECO "E04"]
[WhiteElo "2110"]
[BlackElo "2342"]
[Annotator "NA"]
[PlyCount "70"]
[EventDate "2018.08.18"]
[EventType "swiss"]
[EventCountry "POL"]
[SourceTitle "playchess.com"]
[Source "ChessBase"]
[SourceQuality "1"]
[TimeControl "40/5400+30:1800+30"]

1. Nf3 {[%emt 0:00:00]} Nf6 {[%emt 0:00:00]} 2. c4 {[%emt 0:00:00]} e6 {[%emt 0:00:00]} 3. g3 {[%emt 0:00:00]} d5 {[%emt 0:00:00]} 4. d4 {[%emt 0:00:00]} dxc4 {[%emt 0:00:12]} 5. Bg2 {[%emt 0:00:00]} a6 {[%emt 0:00:13]} 6. O-O {[%emt 0:00:57]} Nc6 {[%emt 0:00:11]} 7. e3 {[%emt 0:04:24]} Bd7 {[%emt 0:00:35]} 8. Qe2 {[%emt 0:02:17]} Bd6 {[%emt 0:01:22]} 9. Qxc4 {[%emt 0:07:05]} O-O {[%emt 0:00:44]} 10. Rd1 {[%emt 0:04:13]} Rb8 {[%emt 0:01:02]} 11. Nc3 {[%emt 0:09:40]} Qe7 {[%emt 0:13:36]} 12. e4 {[%emt 0:03:56]} b5 {[%emt 0:01:39]} 13. Qe2 {[%emt 0:01:27]} e5 {[%emt 0:00:11]} 14. dxe5 {[%emt 0:02:53]} Nxe5 {[%emt 0:02:45]} 15. Nxe5 {[%emt 0:00:10]} Bxe5 {[%emt 0:00:07]} 16. h3 {[%emt 0:03:01]} b4 {[%emt 0:06:00]} 17. Nd5 $15 {[%emt 0:01:32]} Nxd5 {[%emt 0:00:08]} 18. Rxd5 {[%emt 0:06:23]} Bc6 {[%emt 0:03:28]} 19. Rd1 {[%emt 0:03:17]} Bb5 {[%emt 0:01:13]} 20. Qc2 {[%emt 0:01:19]} c5 {[%emt 0:03:25]} 21. Be3 {[%emt 0:01:32]} Rbc8 {[%emt 0:08:22]} 22. a4 {[%emt 0:06:54]} bxa3 {[%emt 0:02:16]} 23. Rxa3 {[%emt 0:00:06]} Rfd8 {[%emt 0:10:41]} 24. Rxd8+ {[%emt 0:12:42]} Qxd8 {[%emt 0:00:08]} 25. Bxc5 {[%emt 0:01:53]} Bxb2 {[%emt 0:03:25]} 26. Qxb2 {[%emt 0:02:19]} Rxc5 {[%emt 0:00:14]} 27. Rc3 {[%emt 0:05:51]} Qd4 {[%emt 0:03:26]} 28. Rxc5 {[%emt 0:00:09]} Qxc5 {[%emt 0:00:06]} 29. Qd2 {[%emt 0:00:53]} Qc7 {[%emt 0:01:36]} 30. Qd5 {[%emt 0:03:03]} Bc6 {[%emt 0:05:46]} 31. Qc5 {[%emt 0:01:28]} Qb7 {[%emt 0:00:06]} 32. Qa5 {[%emt 0:02:05]} h6 {[%emt 0:02:44]} 33. Bf1 {[%emt 0:01:25]} Qb1 {[%emt 0:06:35]} 34. Qxa6 {[%emt 0:00:50]} Bxe4 {[%emt 0:00:38]} 35. Qb5 {[%emt 0:04:55]} Qxb5 {[%emt 0:02:55]} 1/2-1/2

[Event "54th Rubinstein Memorial-A 2018"]
[Site "Polanica-Zdroj"]
[Date "2018.08.26"]
[Round "9"]
[White "Luberanski, Jakub"]
[Black "Nowak, Kamil"]
[Result "0-1"]
[ECO "C11"]
[WhiteElo "1763"]
[BlackElo "2313"]
[Annotator "NA"]
[PlyCount "98"]
[EventDate "2018.08.18"]
[EventType "swiss"]
[EventCountry "POL"]
[SourceTitle "playchess.com"]
[Source "ChessBase"]
[SourceQuality "1"]
[TimeControl "40/5400+30:1800+30"]

1. e4 {[%emt 0:00:00]} e6 {[%emt 0:00:00]} 2. d4 {[%emt 0:00:00]} d5 {[%emt 0:00:00]} 3. Nc3 {[%emt 0:00:00]} Nf6 {[%emt 0:00:00]} 4. e5 {[%emt 0:00:00]} Nfd7 {[%emt 0:00:00]} 5. f4 {[%emt 0:00:00]} c5 {[%emt 0:00:04]} 6. Nf3 {[%emt 0:00:13]} Nc6 {[%emt 0:00:08]} 7. Be3 {[%emt 0:00:05]} Be7 {[%emt 0:00:06]} 8. Be2 {[%emt 0:06:09]} O-O {[%emt 0:01:25]} 9. O-O {[%emt 0:01:22] C11: French: Classical System: 4 e5 and 4 Bg5 dxe4} (9. Qd2 b6 {½-½ (9) Solodovnichenko,Y (2531)-Baklan,V (2595) Cesme 2018}) 9... b6 {[%emt 0:00:54]} 10. Qe1 {[%emt 0:03:51]} f5 {[%emt 0:04:58]} 11. Kh1 {[%emt 0:10:33]} Bb7 {[%emt 0:06:00]} 12. Rd1 {[%emt 0:01:56]} Kh8 $146 {[%emt 0:03:07]} ({Predecessor:} 12... cxd4 13. Nxd4 Nxd4 14. Bxd4 Nc5 15. b4 Nd7 {½-½ (29) Adair,J (2488)-Martins,D (2383) Reading 2016}) 13. Qg3 {[%emt 0:05:17]} Rg8 {[%emt 0:05:00]} 14. Qh3 {[%emt 0:02:45]} cxd4 {[%emt 0:08:43]} 15. Nxd4 {[%emt 0:00:46]} Nxd4 {[%emt 0:00:08]} 16. Bxd4 {[%emt 0:00:06]} Nc5 {[%emt 0:00:07]} 17. g4 {[%emt 0:06:06]} Qc8 {[%emt 0:02:12]} 18. Rg1 {[%emt 0:03:41]} Ne4 {[%emt 0:04:21]} 19. gxf5 {[%emt 0:02:33]} exf5 {[%emt 0:04:17]} 20. Bh5 {[%emt 0:12:46]} Rf8 {[%emt 0:16:08]} 21. Rg2 {[%emt 0:08:26]} Bc5 {[%emt 0:00:40]} 22. Ne2 {[%emt 0:07:25]} Qe6 {[%emt 0:02:35]} 23. Rdg1 {[%emt 0:02:11]} Qh6 {[%emt 0:01:19]} 24. c3 {[%emt 0:06:22]} Bxd4 {[%emt 0:01:24]} 25. cxd4 {[%emt 0:03:19]} a5 {[%emt 0:02:56]} 26. Ng3 {[%emt 0:06:50]} g6 {[%emt 0:06:51]} 27. Bg4 {[%emt 0:00:20]} Qxf4 {[%emt 0:01:13]} 28. Bd1 {[%emt 0:06:52]} Qe3 {[%emt 0:00:55]} 29. Qh4 {[%emt 0:00:51]} Nf2+ {[%emt 0:01:37]} 30. Rxf2 {[%emt 0:00:06]} Qxf2 {[%emt 0:00:03]} 31. Qe7 {[%emt 0:00:07]} Rae8 {[%emt 0:07:19]} 32. Qxb7 {[%emt 0:01:11]} Qxd4 {[%emt 0:00:01]} 33. Bf3 {[%emt 0:01:02]} f4 {[%emt 0:02:52]} 34. Ne2 {[%emt 0:01:14]} Qxb2 {[%emt 0:00:56]} 35. Qxd5 {[%emt 0:00:47]} (35. Rc1 $17 {is a better defense.}) 35... Qxe5 {[%emt 0:00:10]} 36. Qb7 {[%emt 0:00:15]} Qb2 {[%emt 0:01:07]} 37. Rg2 {[%emt 0:00:48]} Qa1+ {[%emt 0:01:09]} 38. Rg1 {[%emt 0:00:23]} Qxa2 {[%emt 0:01:00]} 39. Qxb6 {[%emt 0:00:07]} Qd2 {[%emt 0:02:25]} 40. Rg2 {[%emt 0:00:00]} Qb4 {[%emt 0:00:00]} 41. Qa7 $19 {[%emt 0:02:16]} (41. Qg1 $142 Rf6 42. Rf2) 41... a4 {[%emt 0:02:48]} 42. Qg1 {[%emt 0:01:18]} a3 {[%emt 0:01:10]} 43. Rxg6 {[%emt 0:01:43]} hxg6 {[%emt 0:01:11]} 44. Qxg6 {[%emt 0:00:04]} Qe1+ {[%emt 0:00:33]} 45. Ng1 {[%emt 0:00:04]} Qe7 {[%emt 0:01:07]} 46. Qh6+ {[%emt 0:01:44]} Qh7 {[%emt 0:00:10]} 47. Qa6 {[%emt 0:00:35]} Qg7 {[%emt 0:01:58]} 48. Qxa3 {[%emt 0:00:09]} Re1 {[%emt 0:00:33]} 49. Qc5 {[%emt 0:00:04]} Rg8 {[%emt 0:00:31]} 0-1